Cogmind - Beta 15 @@@ ROGUE MODE // 2025.08.08 @ 17:13:44 Player: Inverisimilidude Result: Destroyed by C-57 Dissector with Dual-blade Saw Performance ------------- Evolutions (9) 4500 Regions Visited (20) 4000 Robots Destroyed (196) 980 Value Destroyed (12025) 12025 Prototype IDs (29) 580 Alien Tech Used (0) 0 Bonus (10961) 10961 TOTAL SCORE: 33046 Bonus ------- High Alert Combat Kills 4474 Follower Combat Kills 538 Entered Garrisons 1200 Used RIF Installer 4500 Aligned with FarCom 300 Friendly Fire -51 Cogmind --------- Core Integrity 0/1600 Matter 106/300 Energy 99/100 System Corruption 11% Temperature Cool (0) Movement Core (50) Location -1/Access Parts ------- > --- POWER (2) -------- (None) > --- PROPULSION (8) --- (None) > --- UTILITY (12) ----- (None) > --- WEAPON (3) ------- (None) > --- INVENTORY (5) ---- Relay Coupler [Proto] (15) Long-range Proton Cannon Remote Datajack Power Maul Peak State ------------ > --- POWER ------------ Light Quantum Reactor > --- PROPULSION ------- Biometal Medium Treads Biometal Medium Treads Armored Heavy Treads Biometal Heavy Treads > --- UTILITY ---------- Advanced Heat Sink Large Storage Unit High-capacity Matter Pod Long-range Terrain Scanner Advanced Targeting Computer Core Analyzer Improved Medium Armor Plating Relay Coupler [Proto] Relay Coupler [Proto] > --- WEAPON ----------- Enhanced Quantum Rifle Enhanced Quantum Rifle Enhanced Hardcell Cannon > --- INVENTORY -------- Light Quantum Reactor Q-thruster Impulse Thruster Array Advanced Heat Sink Improved Sensor Array Relay Coupler [Proto] Relay Coupler [Proto] AWS/Autocannon Remote Datajack Power Maul [Rating: 138] Favorites ----------- Power Ion Engine Engine Ion Engine Power Core Neutrino Core Reactor Micro Antimatter Reactor Propulsion Compact Wheel Treads Light Treads Leg Improved Titanium Leg Wheel Compact Wheel Hover Unit Antigrav Array Flight Unit Field Propulsion Array Utility Large Storage Unit Device Advanced Heat Sink Storage Large Storage Unit Processor Advanced Targeting Computer Hackware Relay Coupler [NC] Protection Improved Medium Armor Plating Weapon Power Maul Energy Gun EM Pulse Gun Energy Cannon Enhanced Nova Cannon Ballistic Gun Gauss Rifle Ballistic Cannon Heavy Mass Driver Launcher Rocket Launcher Special Weapon Remote Datajack Impact Weapon Power Maul Special Melee Weapon Advanced Datajack Build | -11 -10 -10 -10 -9 -8 -8 -8 -8 -7 -7 -6 -6 -6 -5 -5 -4 -4 -3 -2 -1 ------- Run | Yrd Mat Min Exi Min Mat Gar Mat Gar Fac Gar Fac Gar Fac Fac Gar Fac Gar Res Res Acc Slots Evolved 18 | . . . . . 4 . . . 2 . 2 . . 2 . 2 . 2 2 2 Power 1 | . . . . . . . . . . . . . . . . . . . . 1 Propulsion 6 | . . . . . 2 . . . . . 1 . . 1 . . . 1 1 . Utility 10 | . . . . . 1 . . . 2 . 1 . . 1 . 2 . 1 1 1 Weapon 1 | . . . . . 1 . . . . . . . . . . . . . . . Parts Attached 167 | 6 5 2 3 1 5 9 8 18 13 22 4 22 1 7 9 1 8 7 4 12 Power 20 | 1 . . 1 . . 1 2 2 . 4 . 3 . 1 1 . 1 2 . 1 Engine 7 | 1 . . 1 . . 1 1 1 . 2 . . . . . . . . . . Core 7 | . . . . . . . 1 1 . 2 . 2 . 1 . . . . . . Reactor 6 | . . . . . . . . . . . . 1 . . 1 . 1 2 . 1 Propulsion 53 | 2 1 . 1 . 3 1 2 4 5 9 2 8 . 1 2 . 1 3 2 6 Treads 24 | 1 1 . . . 2 1 1 2 1 6 1 4 . . 2 . . . 1 1 Leg 5 | . . . . . . . . . 2 2 . 1 . . . . . . . . Wheel 13 | 1 . . 1 . 1 . 1 2 2 1 1 . . . . . . . 1 2 Hover 7 | . . . . . . . . . . . . 2 . 1 . . . 2 . 2 Flight 4 | . . . . . . . . . . . . 1 . . . . 1 1 . 1 Utility 51 | 1 2 . 1 . 1 3 3 4 4 5 1 6 1 4 2 1 5 2 2 3 Device 19 | . . . . . . 2 1 1 2 . 1 3 . 2 1 1 1 2 2 . Storage 4 | 1 2 . . . . . . . . . . . . 1 . . . . . . Processor 5 | . . . . . . . . . 1 2 . . . 1 . . . . . 1 Hackware 8 | . . . . . . . . . 1 1 . 1 . . . . 4 . . 1 Protection 15 | . . . 1 . 1 1 2 3 . 2 . 2 1 . 1 . . . . 1 Artifact . | . . . . . . . . . . . . . . . . . . . . . Weapon 43 | 2 2 2 . 1 1 4 1 8 4 4 1 5 . 1 4 . 1 . . 2 Energy Gun 13 | 1 1 1 . 1 . 2 . 1 1 2 . 1 . . 1 . 1 . . . Energy Cannon 2 | . . . . . . . . . . . . . . . 1 . . . . 1 Ballistic Gun 10 | 1 1 . . . . 1 1 3 . . . 2 . . 1 . . . . . Ballistic Cannon 13 | . . . . . . 1 . 3 2 2 1 2 . 1 1 . . . . . Launcher 1 | . . . . . 1 . . . . . . . . . . . . . . . Special Weapon 1 | . . . . . . . . 1 . . . . . . . . . . . . Impact Weapon 2 | . . 1 . . . . . . 1 . . . . . . . . . . . Slashing Weapon . | . . . . . . . . . . . . . . . . . . . . . Piercing Weapon . | . . . . . . . . . . . . . . . . . . . . . Special Melee Weapon 1 | . . . . . . . . . . . . . . . . . . . . 1 Unidentified Prototypes 6 | . . . . . . . . . 1 . . . . 1 . . . 1 1 2 Parts Lost 65 | . . 1 . . . 1 . 10 4 7 . 15 . 3 . . 9 . 1 14 Power 8 | . . . . . . . . 1 . 2 . 1 . 1 . . 2 . . 1 Propulsion 24 | . . . . . . . . 3 1 3 . 7 . 1 . . 2 . 1 6 Utility 21 | . . . . . . 1 . 2 2 1 . 4 . 1 . . 4 . . 6 Weapon 12 | . . 1 . . . . . 4 1 1 . 3 . . . . 1 . . 1 Highest Loss Streak 9 | . . 1 . . . 1 . 4 2 3 . 5 . 2 . . 9 . 1 4 To Critical Strikes 2 | . . . . . . . . 1 1 . . . . . . . . . . . Average Backups 10 | 2 9 14 14 12 11 12 13 12 12 11 10 9 12 11 10 12 7 4 5 4 Power . | . 1 1 . . 1 1 1 1 . . 1 . . . . 1 . . 1 . Propulsion 1 | 1 3 5 4 3 2 2 3 2 . . . 3 2 2 2 2 1 . . . Utility 3 | . . 1 2 2 3 2 3 4 6 5 4 2 7 6 6 6 3 2 2 1 Weapon 3 | . 4 6 7 7 5 6 5 3 3 4 4 2 2 1 1 3 1 1 1 1 Tool/Special . | . . . . . . . . . . . . . . . . . . . . . Unused Backups 19 | . 2 2 1 . . 1 1 1 3 3 . 1 . . 1 . . . . 3 Power 4 | . . . . . . . . . 1 2 . 1 . . . . . . . . Propulsion 2 | . . . 1 . . . . . . . . . . . 1 . . . . . Utility 6 | . . 1 . . . 1 1 1 . . . . . . . . . . . 2 Weapon 5 | . 1 1 . . . . . . 1 1 . . . . . . . . . 1 Tool/Special 2 | . 1 . . . . . . . 1 . . . . . . . . . . . Average Slot Usage (%) 82 | . 85 85 72 77 90 97 97 97 96 93 80 71 86 78 85 80 50 24 37 40 Engine 3 | . 14 14 14 14 9 9 8 . 7 4 . . . . . . . . . . Core 2 | . . . . . . . . 8 . 2 6 3 6 4 3 . . . . . Treads 15 | . 14 14 14 14 18 18 17 18 12 17 24 10 26 21 22 21 9 3 1 2 Wheel 8 | . 14 14 14 14 14 18 18 17 13 7 6 . . . . . . . 3 4 Hover 1 | . . . . . . . . . . . . 6 . 3 3 . . 4 5 2 Device 4 | . . . . . . 4 4 1 13 2 1 8 6 5 5 6 6 . 7 5 Storage 7 | . 14 14 14 14 9 9 9 9 7 7 6 6 6 6 11 10 5 . . . Processor 7 | . . . . . . . . . 1 14 13 13 13 12 11 10 6 4 4 7 Hackware 2 | . . . . . . . . . 2 6 . 4 5 . . . 5 4 4 7 Protection 7 | . . . 14 14 14 11 12 15 9 5 6 2 7 9 10 10 4 . . 1 Energy Gun 4 | . 6 16 1 6 18 11 17 8 1 3 . 1 . . . . . . . . Ballistic Gun 3 | . 21 10 . . . 3 7 9 10 . . . 6 . . . . . . . Ballistic Cannon 4 | . . . . . . 2 . 8 10 5 9 6 6 8 3 5 1 . . . Impact Weapon 2 | . . . . . . 5 1 . . 6 3 . . . 3 5 1 . . . Peak Build Rating 138 | 6 8 8 9 11 19 22 32 54 51 59 56 109 99 111 113 116 138 58 75 119 Average Rating 53 | 4 6 7 7 9 16 20 25 36 44 45 53 87 98 100 97 111 71 34 68 67 On Entrance 45 | . 6 7 8 9 11 19 21 32 37 42 52 56 99 96 98 109 116 9 50 75 Naked Turns 6 | . . . . . . . . . . . . . . . . . . . . 6 Heaviest Build 110 | 13 29 30 28 32 39 44 53 100 64 93 70 102 76 93 100 71 110 9 12 15 Greatest Support 205 | 20 20 16 16 16 32 32 32 32 28 63 16 165 165 165 205 205 205 35 20 24 Greatest Overweight (x) 31 | . 1 1 1 1 2 1 2 3 5 5 4 31 . . . . 1 . . 1 Average Overweight (x) . | . . 1 1 1 1 1 1 1 2 2 3 1 . . . . . . . . Largest Inventory Capacity 15 | 8 15 15 15 15 15 15 15 15 15 15 15 15 15 15 15 15 15 5 5 5 Average Capacity 14 | 6 14 15 15 15 15 15 15 15 15 15 15 15 15 15 15 15 9 5 5 5 Most Carried 15 | 4 15 15 15 15 15 15 15 15 15 15 15 15 15 15 15 15 15 5 5 5 Average Carried 13 | 2 9 14 14 14 13 14 14 14 14 14 14 13 14 14 12 15 8 4 5 4 Final Capacity 15 | 8 15 15 15 15 15 15 15 15 15 15 15 15 15 15 15 15 5 5 5 5 Final Carried 15 | 4 14 15 15 14 15 15 15 12 15 15 14 15 15 11 15 15 5 5 5 4 Class Distribution -------------------- 28% | Mutant 14% | Skirmisher 12% | Scavenger-Mutant 10% | Bothacker-Tank 9% | Tank 6% | Bothacker-Mutant 5% | Scout 3% | Scavenger-Tank 3% | Scavenger-Skirmisher Dominant Class ---------------- Mutant | -10/Materials Mutant | -10/Mines Mutant | -10/Exiles Mutant | -9/Mines Tank | -8/Materials Mutant | -8/Garrison Scavenger-Skirmisher | -8/Materials Tank | -8/Garrison Scavenger-Tank | -7/Factory Scavenger-Mutant | -7/Garrison Mutant | -6/Factory Skirmisher | -6/Garrison Bothacker-Tank | -6/Factory Bothacker-Tank | -5/Factory Bothacker-Mutant | -5/Garrison Bothacker-Mutant | -4/Factory Mutant | -4/Garrison Mutant | -3/Research Scout | -2/Research Scout | -1/Access Resources | -11 -10 -10 -10 -9 -8 -8 -8 -8 -7 -7 -6 -6 -6 -5 -5 -4 -4 -3 -2 -1 ----------- Run | Yrd Mat Min Exi Min Mat Gar Mat Gar Fac Gar Fac Gar Fac Fac Gar Fac Gar Res Res Acc Matter Collected 6425 | 233 92 267 . 30 93 504 56 1370 762 807 324 1329 . 252 . . 306 . . . Remotely . | . . . . . . . . . . . . . . . . . . . . . Salvage Created 6854 | . 92 210 . . 282 648 158 1288 768 1044 546 1111 . 408 . . 299 . . . Parts 325 | . 11 12 . . 8 40 5 77 30 42 24 45 . 24 . . 7 . . . Haulers Intercepted 4 | . 1 . . . 1 . . . 2 . . . . . . . . . . . Recyclers Shooed 1 | . . . . . 1 . . . . . . . . . . . . . . . Parts Field Recycled . | . . . . . . . . . . . . . . . . . . . . . Retrieved Matter . | . . . . . . . . . . . . . . . . . . . . . Parts Self-Destructed . | . . . . . . . . . . . . . . . . . . . . . Prevented . | . . . . . . . . . . . . . . . . . . . . . Kills | -11 -10 -10 -10 -9 -8 -8 -8 -8 -7 -7 -6 -6 -6 -5 -5 -4 -4 -3 -2 -1 ------- Run | Yrd Mat Min Exi Min Mat Gar Mat Gar Fac Gar Fac Gar Fac Fac Gar Fac Gar Res Res Acc Combat Hostiles Destroyed 173 | . 3 4 . . 3 22 2 37 13 30 7 34 . 13 . . 5 . . . Guns 53 | . 3 4 . . 1 10 2 17 4 7 . 4 . . . . 1 . . . Cannons 105 | . . . . . . 6 . 14 9 22 7 30 . 13 . . 4 . . . AOE 14 | . . . . . 2 6 . 6 . . . . . . . . . . . . Classes Destroyed 17 | . 2 2 . . 1 2 . 3 2 3 1 1 . . . . . . . . Worker 5 | . . . . . . . . . 4 . 1 . . . . . . . . . Builder 1 | . . . . . . . . . 1 . . . . . . . . . . . Tunneler 1 | . . . . . . . . . . . 1 . . . . . . . . . Hauler 4 | . 1 . . . 1 . . . 2 . . . . . . . . . . . Recycler 9 | . . . . . 2 . 1 . 3 . 3 . . . . . . . . . Watcher 2 | . . . . . . 1 . . . . . 1 . . . . . . . . Swarmer 46 | . 3 . . . . 14 . 11 3 4 3 5 . 3 . . . . . . Cutter 4 | . . . . . . . . . . 2 . 2 . . . . . . . . Grunt 59 | . . 3 . . 4 4 1 8 7 14 2 12 . . . . 4 . . . Brawler 1 | . . . . . . . . 1 . . . . . . . . . . . . Duelist 1 | . . . . . . . . . . . . 1 . . . . . . . . Sentry 26 | . . 1 . . . 2 1 4 2 5 2 7 . 2 . . . . . . Specialist 5 | . . . . . . . . 1 . . . 4 . . . . . . . . Hunter 11 | . . . . . . 2 . 4 1 3 . . . . . . 1 . . . Programmer 17 | . . . . . . . . 7 . . . 2 . 8 . . . . . . Heavy 1 | . . . . . . . . . . 1 . . . . . . . . . . Behemoth 1 | . . . . . . . . . . . . 1 . . . . . . . . Thug 1 | . . . . . . . . 1 . . . . . . . . . . . . Butcher 1 | . . . . . . . . . . 1 . . . . . . . . . . Best Kill Streak 8 | . 3 2 . . 5 7 3 8 7 4 5 5 . 3 . . 5 . . . Combat Bots Only 8 | . 3 2 . . 3 7 2 8 3 4 5 5 . 3 . . 5 . . . Max Kills in Single Turn 4 | . 1 1 . . 3 3 1 4 1 1 1 1 . 1 . . 1 . . . Gunslinging . | . . . . . . . . . . . . . . . . . . . . . Exploded 4 | . . . . . 1 3 . 4 . . . . . . . . . . . . Melee . | . . . . . . . . . . . . . . . . . . . . . Uniques/NPCs Destroyed . | . . . . . . . . . . . . . . . . . . . . . Combat | -11 -10 -10 -10 -9 -8 -8 -8 -8 -7 -7 -6 -6 -6 -5 -5 -4 -4 -3 -2 -1 -------- Run | Yrd Mat Min Exi Min Mat Gar Mat Gar Fac Gar Fac Gar Fac Fac Gar Fac Gar Res Res Acc Hostile Shots Fired 1867 | . 12 24 . . 9 70 6 242 123 254 71 452 . 64 . . 251 3 23 263 Missed 660 | . 2 8 . . 3 18 2 65 49 84 22 139 . 23 . . 111 . 11 123 Hits 1207 | . 10 16 . . 6 52 4 177 74 170 49 313 . 41 . . 140 3 12 140 Melee 6 | . . . . . . . . . . . . 1 . . . . . . . 5 Projectile 1201 | . 10 16 . . 6 52 4 177 74 170 49 312 . 41 . . 140 3 12 135 AOE 3 | . . . . . . . . . . . . 3 . . . . . . . . Critical Strikes 40 | . . . . . . 2 . 6 2 2 . 3 . 5 . . 10 . . 10 Actively Blocked 1 | . . . . . . . . . . . . . . . . . . . . 1 Part Disruptions 15 | . 1 . . . . . . . . . . 14 . . . . . . . . Damage Taken 17797 | . 169 196 . . 121 577 62 2384 1042 1728 602 3926 . 791 . . 2441 68 244 3446 Core 4025 | . 39 34 . . 17 47 18 283 120 188 86 430 . 73 . . 1031 . 49 1610 Absorbed by Shields 250 | . . . . . . . . . . 86 . 95 . . . . 69 . . . Redirected to Shielding 100 | . . . . . . . . . . . . . . . . . . . . 100 Core Remaining (%) 66 | 100 . . . 70 . . . 33 . 56 . . 39 . 92 . 10 100 96 . Volleys Fired 429 | . 14 16 . . 7 40 8 103 42 79 18 83 1 12 3 . 3 . . . Largest 3 | . 2 2 . . 2 3 2 3 3 3 2 2 1 2 1 . 3 . . . Hottest 188 | . 60 80 . . 80 128 105 162 108 80 109 164 70 117 5 . 188 . . . Shots Fired 893 | . 27 30 . . 9 89 15 256 121 107 30 146 1 42 4 . 16 . . . Gun 436 | . 27 30 . . 4 67 15 155 52 38 . 42 . . . . 6 . . . Cannon 440 | . . . . . . 17 . 97 69 69 30 104 1 42 1 . 10 . . . Launcher 13 | . . . . . 5 5 . 3 . . . . . . . . . . . . Special 4 | . . . . . . . . 1 . . . . . . 3 . . . . . Kinetic 644 | . 22 11 . . . 47 5 182 115 73 30 105 1 42 1 . 10 . . . Thermal 121 | . . . . . . 18 2 14 6 34 . 41 . . . . 6 . . . Explosive 13 | . . . . . 5 5 . 3 . . . . . . . . . . . . Electromagnetic 111 | . 5 19 . . 4 19 8 56 . . . . . . . . . . . . Robot Hit Streak 20 | . 3 7 . . 5 11 5 12 12 17 14 17 . 20 . . 7 . . . Robot Miss Streak 8 | . 3 2 . . 1 8 4 6 4 2 3 4 . 2 . . 1 . . . Penetration Max 1 | . . . . . . . 1 1 1 . . . . . . . . . . . Secondary Targets 1 | . . . . . . . . 1 . . . . . . . . . . . . Max Gunslinging Chain 1 | . . . . . . . . 1 . . . . . . . . . . . . Autonomous 62 | . . . . . . . . 6 . 7 . 24 . 18 . . 7 . . . Shots Hit Robots 566 | . 13 21 . . 6 62 9 131 75 83 28 90 . 30 . . 11 . . 7 Core Hits 342 | . 7 11 . . 18 60 6 74 30 35 35 46 . 12 . . 8 . . . Critical Kills 9 | . 1 . . . . 1 1 4 2 . . . . . . . . . . . Critical Parts Destroyed 12 | . . . . . . 1 . 7 3 1 . . . . . . . . . . Critical Strikes 53 | . 1 . . . . 2 1 15 10 8 2 9 . 3 . . 2 . . . Destroy 18 | . 1 . . . . 1 1 11 4 . . . . . . . . . . . Blast 32 | . . . . . . . . 4 5 7 2 9 . 3 . . 2 . . . Smash 3 | . . . . . . 1 . . 1 1 . . . . . . . . . . Melee Attacks 128 | . . 9 . . . 39 . 17 3 46 2 . . . 4 . 1 . . 7 Impact 121 | . . 9 . . . 39 . 17 3 46 2 . . . 4 . 1 . . . Slashing . | . . . . . . . . . . . . . . . . . . . . . Piercing . | . . . . . . . . . . . . . . . . . . . . . Sneak Attacks 10 | . . . . . . . . . 3 1 2 . . . . . . . . 4 Combat Hostiles . | . . . . . . . . . . . . . . . . . . . . . Follow-up Attacks . | . . . . . . . . . . . . . . . . . . . . . Damage Inflicted 22452 | . 143 291 . . 866 1405 156 3730 2176 3502 1374 5824 . 2224 . . 733 . . 28 Guns 4799 | . 143 291 . . 36 652 156 1750 614 554 . 484 . . . . 119 . . . Cannons 15042 | . . . . . . 258 . 1536 1066 2811 1195 5340 . 2224 . . 612 . . . Explosions 1790 | . . . . . 830 286 . 444 196 34 . . . . . . . . . . Melee 791 | . . . . . . 209 . . 300 103 179 . . . . . . . . . Ramming 30 | . . . . . . . . . . . . . . . . . 2 . . 28 Kinetic 17360 | . 130 115 . . . 543 95 2647 1586 2851 1195 5362 . 2224 . . 612 . . . Thermal 1976 | . . . . . 40 226 15 310 290 514 . 462 . . . . 119 . . . Explosive 1446 | . . . . . 790 286 . 336 . 34 . . . . . . . . . . Electromagnetic 849 | . 13 176 . . 36 141 46 437 . . . . . . . . . . . . Impact 791 | . . . . . . 209 . . 300 103 179 . . . . . . . . . Slashing . | . . . . . . . . . . . . . . . . . . . . . Piercing . | . . . . . . . . . . . . . . . . . . . . . Highest Corruption 17 | . 2 2 2 2 . . . 8 1 1 . 17 17 7 7 . 9 . . 11 Average Corruption 5 | . 1 2 2 2 . . . 4 1 1 . 14 17 3 7 . 4 . . 7 Corruption Purged . | . . . . . . . . . . . . . . . . . . . . . Corruption Blocked . | . . . . . . . . . . . . . . . . . . . . . Effects 230 | . 3 10 3 . . . . 32 5 16 . 94 3 10 39 . 2 . . 13 Message Errors 54 | . 1 3 1 . . . . 7 1 3 . 17 1 4 13 . 1 . . 2 Matter Fused 54 | . 1 3 . . . . . 8 2 2 . 23 2 2 8 . . . . 3 Heat Flow Errors 22 | . 1 . 1 . . . . 3 1 3 . 7 . . 4 . . . . 2 Energy Discharges 23 | . . . . . . . . 3 . 1 . 10 . 1 7 . 1 . . . Parts Rejected 5 | . . . . . . . . 1 . . . 4 . . . . . . . . Parts Fused 2 | . . . . . . . . . . . . 2 . . . . . . . . Data Loss (minor) 25 | . . 1 . . . . . 5 1 2 . 11 . 1 1 . . . . 3 Data Loss (major) 17 | . . 1 1 . . . . 1 . 2 . 6 . 1 4 . . . . 1 Misfires 11 | . . . . . . . . 2 . 2 . 6 . . 1 . . . . . Alerts 10 | . . 2 . . . . . 1 . 1 . 3 . 1 1 . . . . 1 Misdirections 1 | . . . . . . . . . . . . . . . . . . . . 1 Weapon Failures 6 | . . . . . . . . 1 . . . 5 . . . . . . . . Overload Shots . | . . . . . . . . . . . . . . . . . . . . . Overflow Damage 1405 | . . . . . 11 29 . 110 152 146 129 345 . 449 . . 21 . . 13 Projectiles 978 | . . . . . . . . 70 . 43 50 345 . 449 . . 21 . . . Explosions 51 | . . . . . 11 . . 40 . . . . . . . . . . . . Melee 376 | . . . . . . 29 . . 152 103 79 . . . . . . . . 13 Knockbacks 89 | . . . . . . 7 . 14 16 13 13 16 . 7 . . 3 . . . Impact 2 | . . . . . . 1 . . . . 1 . . . . . . . . . Kinetic 78 | . . . . . . 6 . 12 14 12 10 15 . 7 . . 2 . . . Secondary 9 | . . . . . . . . 2 2 1 2 1 . . . . 1 . . . Self-Inflicted Damage 167 | . . . . . 14 . . . 70 68 . . . . . . 1 . . 14 Shots 3 | . . . . . 1 . . . 1 1 . . . . . . . . . . Rammed 4 | . . . . . . . . . . . . . . . . . 2 . . 2 Targets Rammed 4 | . . . . . . . . . . . . . . . . . 2 . . 2 Kicked . | . . . . . . . . . . . . . . . . . . . . . Crushed . | . . . . . . . . . . . . . . . . . . . . . Highest Temperature 382 | . 97 103 133 . 21 165 63 382 205 204 111 227 . 1 218 . 164 . . 220 Average Temperature 66 | . 58 38 99 . 13 34 35 103 21 25 32 47 . 1 98 . 78 . . 110 Received Heat Transfer 2727 | . . 96 . . 54 90 27 378 387 424 126 711 . 36 . . 272 . 18 108 Effects 4 | . . . . . . . . 4 . . . . . . . . . . . . Energy Bleed 2 | . . . . . . . . 2 . . . . . . . . . . . . Interference 2 | . . . . . . . . 2 . . . . . . . . . . . . Siege Activations . | . . . . . . . . . . . . . . . . . . . . . Martial Activations . | . . . . . . . . . . . . . . . . . . . . . Shielding Activations . | . . . . . . . . . . . . . . . . . . . . . Robots Disrupted . | . . . . . . . . . . . . . . . . . . . . . Combat Hostiles . | . . . . . . . . . . . . . . . . . . . . . Robots Corrupted 4 | . . . . . . 1 . . . 1 2 . . . . . . . . . Combat Hostiles . | . . . . . . . . . . . . . . . . . . . . . Parts Fried 9 | . . 1 . . . 2 . 1 1 1 3 . . . . . . . . . Impact Corruptions 11 | . . . . . . 1 . . 3 3 3 . . . . . . . . 1 Robots Melted . | . . . . . . . . . . . . . . . . . . . . . Combat Hostiles . | . . . . . . . . . . . . . . . . . . . . . Parts Melted 7 | . . . . . . . . . . 5 . . . . . . 2 . . . Heat Transferred 2390 | . . . . . . 285 20 299 285 801 . 552 . . . . 148 . . . Parts Sabotaged . | . . . . . . . . . . . . . . . . . . . . . Parts Stolen . | . . . . . . . . . . . . . . . . . . . . . Parts Stripped . | . . . . . . . . . . . . . . . . . . . . . Power Chain Reactions 3 | . . . . . 1 . . 2 . . . . . . . . . . . . Alert | -11 -10 -10 -10 -9 -8 -8 -8 -8 -7 -7 -6 -6 -6 -5 -5 -4 -4 -3 -2 -1 ------- Run | Yrd Mat Min Exi Min Mat Gar Mat Gar Fac Gar Fac Gar Fac Fac Gar Fac Gar Res Res Acc Maximum Alert Level 5 | . . . . . . 3 2 5 4 5 5 5 4 2 4 2 2 1 . 1 Low Security (%) 22 | 100 100 100 . 100 100 28 . . . . . . . . . . . 52 100 98 Level 1 6 | . . . . . . 27 80 12 . . . . . . . . 33 47 . 1 Level 2 16 | . . . . . . 22 19 15 . . . . . 100 63 100 66 . . . Level 3 14 | . . . . . . 21 . 16 79 22 . . . . 30 . . . . . Level 4 18 | . . . . . . . . 17 20 31 73 41 100 . 6 . . . . . Level 5 21 | . . . . . . . . 36 . 46 26 58 . . . . . . . . High Security . | . . . . . . . . . . . . . . . . . . . . . Max Security . | . . . . . . . . . . . . . . . . . . . . . Peak Influence 2889 | . 120 50 . 73 81 743 413 2024 1204 2889 1709 2507 1316 641 1102 578 478 260 81 214 Initial 1516 | . . . . . 24 2 362 222 1062 830 1516 1168 1316 641 436 578 390 260 81 21 Average 966 | . 28 5 . 31 28 403 376 1189 1029 1722 1530 1774 1310 545 718 569 425 192 55 47 Influence Increases 9761 | . 143 90 . 113 121 751 71 1962 532 2129 419 1509 15 375 666 . 243 24 66 532 Destroy 0b10 Robot/C 3800 | . 60 80 . 80 60 460 40 840 260 640 160 740 . 260 . . 120 . . . Destroy 0b10 Robot/NC 125 | . 5 . . . 20 15 5 . 50 . 25 5 . . . . . . . . Destroy Leader 400 | . 12 10 . 20 14 30 10 70 44 20 50 50 . 60 . . 10 . . . Allied During Kill 180 | . . . . 13 1 14 16 103 . 6 4 12 . . . . 11 . . . Successful Hack 223 | . 6 . . . 4 21 . 14 . 7 8 14 . 16 14 . 7 24 21 67 Disable Machine 255 | . . . . . . 30 . 15 105 60 . 15 15 15 . . . . . . Anti-Garrison Action 3200 | . . . . . . 100 . 700 . 1000 150 550 . . 650 . 50 . . . Destroy Structure 513 | . . . . . 22 66 . 145 43 126 7 78 . 24 2 . . . . . Partial Spotted 15 | . 15 . . . . . . . . . . . . . . . . . . . Lose Combat Pursuer 1050 | . 45 . . . . 15 . 75 30 270 15 45 . . . . 45 . 45 465 Influence Decreases 9583 | . 143 90 . 50 180 12 471 281 1370 426 1639 671 1211 1062 188 544 338 343 173 391 Entered New Map 6758 | . . . . . 39 2 381 121 962 356 1373 501 1191 670 188 524 168 203 63 16 Time Decay 1925 | . 143 90 . 30 121 . 90 . 368 . 246 . 20 362 . 20 . 140 100 195 Lost Part 640 | . . . . . . 10 . 100 40 70 . 150 . 30 . . 90 . 10 140 Lost Ally 260 | . . . . 20 20 . . 60 . . 20 20 . . . . 80 . . 40 Squads Dispatched 27 | . . . . 1 1 . 1 . 1 . 7 . . 2 . . . 1 1 12 Investigation 5 | . . . . 1 . . 1 . . . 1 . . . . . . . . 2 Extermination 8 | . . . . . . . . . . . . . . 1 . . . 1 1 5 Reinforcement 9 | . . . . . 1 . . . 1 . 1 . . 1 . . . . . 5 Assault 4 | . . . . . . . . . . . 4 . . . . . . . . . Garrison 1 | . . . . . . . . . . . 1 . . . . . . . . . Intercept . | . . . . . . . . . . . . . . . . . . . . . Searches Triggered . | . . . . . . . . . . . . . . . . . . . . . Construction Impeded 2 | . . . . . 1 . . . . . 1 . . . . . . . . . Haulers Reinforced 1 | . . . . . . . . . 1 . . . . . . . . . . . Active Scanning Responses . | . . . . . . . . . . . . . . . . . . . . . Cargo Convoy Interrupts . | . . . . . . . . . . . . . . . . . . . . . Stealth | -11 -10 -10 -10 -9 -8 -8 -8 -8 -7 -7 -6 -6 -6 -5 -5 -4 -4 -3 -2 -1 --------- Run | Yrd Mat Min Exi Min Mat Gar Mat Gar Fac Gar Fac Gar Fac Fac Gar Fac Gar Res Res Acc Distress Signals 16 | . 3 4 . . 3 2 . . . . . 1 . . . . . . . 3 Communications Jammed 2 | . . . . . . . . . 2 . . . . . . . . . . . Distress Signals 2 | . . . . . . . . . 2 . . . . . . . . . . . Times Spotted 316 | . 10 4 . 4 7 25 5 43 16 42 13 59 . 14 . . 20 2 3 49 Peak Tracking Total 16 | . 6 2 . 3 5 6 2 7 4 6 5 16 . 3 . . 14 2 3 13 Tactical Retreats 36 | . 1 . . . . 1 . 5 2 12 1 2 . . . . 2 . 1 9 Traps | -11 -10 -10 -10 -9 -8 -8 -8 -8 -7 -7 -6 -6 -6 -5 -5 -4 -4 -3 -2 -1 ------- Run | Yrd Mat Min Exi Min Mat Gar Mat Gar Fac Gar Fac Gar Fac Fac Gar Fac Gar Res Res Acc Traps Triggered 39 | . 1 . . . . 4 3 8 2 9 . 8 . 1 1 . . . . 2 Indirectly . | . . . . . . . . . . . . . . . . . . . . . Trap Hack Attempts . | . . . . . . . . . . . . . . . . . . . . . Triggered . | . . . . . . . . . . . . . . . . . . . . . Disarmed . | . . . . . . . . . . . . . . . . . . . . . Reprogrammed . | . . . . . . . . . . . . . . . . . . . . . Reused . | . . . . . . . . . . . . . . . . . . . . . Traps Extracted . | . . . . . . . . . . . . . . . . . . . . . Installed . | . . . . . . . . . . . . . . . . . . . . . Triggered . | . . . . . . . . . . . . . . . . . . . . . Machines | -11 -10 -10 -10 -9 -8 -8 -8 -8 -7 -7 -6 -6 -6 -5 -5 -4 -4 -3 -2 -1 ---------- Run | Yrd Mat Min Exi Min Mat Gar Mat Gar Fac Gar Fac Gar Fac Fac Gar Fac Gar Res Res Acc Machines Disabled 46 | . . 1 . . . 4 . 13 7 11 1 6 1 1 . . 1 . . . Max in Single Turn 2 | . . 1 . . . 2 . 2 2 2 1 2 1 1 . . 1 . . . Garrison Access 1 | . . . . . . . . . . . 1 . . . . . . . . . Garrison Relay 18 | . . . . . . 3 . 7 . 5 . 2 . . . . 1 . . . Phase Generator 3 | . . . . . . . . 1 . 1 . 1 . . . . . . . . Machines Repaired . | . . . . . . . . . . . . . . . . . . . . . Machines Dismantled . | . . . . . . . . . . . . . . . . . . . . . Machines Sabotaged . | . . . . . . . . . . . . . . . . . . . . . Overloaded Fab Kills . | . . . . . . . . . . . . . . . . . . . . . Hacking | -11 -10 -10 -10 -9 -8 -8 -8 -8 -7 -7 -6 -6 -6 -5 -5 -4 -4 -3 -2 -1 --------- Run | Yrd Mat Min Exi Min Mat Gar Mat Gar Fac Gar Fac Gar Fac Fac Gar Fac Gar Res Res Acc Machines Accessed 40 | . 2 . 1 1 1 3 1 4 1 4 2 2 . 3 4 1 1 2 2 5 Terminals 31 | . 2 . . 1 . 3 . 4 . 4 . 2 . 2 4 . 1 2 2 4 Fabricators 1 | . . . . . . . . . . . . . . . . . . . . 1 Repair Stations . | . . . . . . . . . . . . . . . . . . . . . Recycling Units . | . . . . . . . . . . . . . . . . . . . . . Scanalyzers . | . . . . . . . . . . . . . . . . . . . . . Garrison Access 7 | . . . . . 1 . 1 . 1 . 2 . . 1 . 1 . . . . Total Hacks 69 | . 4 . 1 3 1 4 3 8 1 11 4 4 . 4 5 1 2 2 2 9 Successful 29 | . 2 . 1 . 1 3 1 3 1 1 2 1 . 3 1 1 1 1 2 4 Failed 39 | . 1 . . 3 . 1 2 5 . 10 2 3 . 1 4 . 1 1 . 5 Catastrophic 11 | . . . . 1 . . . 2 . 2 2 1 . . 2 . . . . 1 Database Lockouts 1 | . 1 . . . . . . . . . . . . . . . . . . . Manual 13 | . 4 . 1 3 . . 2 . . . 3 . . . . . . . . . Terminals 56 | . 4 . . 3 . 4 . 8 . 11 . 4 . 3 5 . 2 2 2 8 Fabricators 1 | . . . . . . . . . . . . . . . . . . . . 1 Repair Stations . | . . . . . . . . . . . . . . . . . . . . . Recycling Units . | . . . . . . . . . . . . . . . . . . . . . Scanalyzers . | . . . . . . . . . . . . . . . . . . . . . Garrison Access 11 | . . . . . 1 . 3 . 1 . 4 . . 1 . 1 . . . . Terminal Hacks 21 | . 2 . 1 . . 3 . 3 . 1 . 1 . 2 1 . 1 1 2 3 Record 1 | . . . . . . . . . . . . . . . . . . 1 . . Robot Analysis 2 | . 1 . . . . . . . . . . . . . . . . . . 1 Open Door 5 | . . . . . . 1 . 1 . 1 . . . . . . 1 . . 1 Open DSF 1 | . . . . . . . . . . . . . . . . . . . 1 . Branch Access Points 4 | . 1 . . . . . . . . . . . . 1 . . . . 1 1 Emergency Access Points 2 | . . . . . . 1 . . . . . 1 . . . . . . . . Surveillance Status 1 | . . . . . . . . . . . . . . 1 . . . . . . Garrison Registry 3 | . . . . . . 1 . 1 . . . . . . 1 . . . . . Patrol Navigation 1 | . . . . . . . . 1 . . . . . . . . . . . . Proto ID Catalog 1 | . . . 1 . . . . . . . . . . . . . . . . . Fabricator Hacks 1 | . . . . . . . . . . . . . . . . . . . . 1 Build 1 | . . . . . . . . . . . . . . . . . . . . 1 Repair Station Hacks . | . . . . . . . . . . . . . . . . . . . . . Recycling Unit Hacks . | . . . . . . . . . . . . . . . . . . . . . Scanalyzer . | . . . . . . . . . . . . . . . . . . . . . Garrison Access Hacks 6 | . . . . . 1 . 1 . 1 . 1 . . 1 . 1 . . . . Unlock Access 6 | . . . . . 1 . 1 . 1 . 1 . . 1 . 1 . . . . Unauthorized Hacks 1 | . . . . . . . . . . . 1 . . . . . . . . . Terminals . | . . . . . . . . . . . . . . . . . . . . . Fabricators . | . . . . . . . . . . . . . . . . . . . . . Repair Stations . | . . . . . . . . . . . . . . . . . . . . . Recycling Units . | . . . . . . . . . . . . . . . . . . . . . Scanalyzers . | . . . . . . . . . . . . . . . . . . . . . Garrison Access 1 | . . . . . . . . . . . 1 . . . . . . . . . Reprogram 1 | . . . . . . . . . . . 1 . . . . . . . . . Data Cores Recovered . | . . . . . . . . . . . . . . . . . . . . . Used . | . . . . . . . . . . . . . . . . . . . . . Hacking Detections 28 | . 1 . . 1 . 2 1 2 1 4 1 2 . 1 4 1 1 2 1 3 Full Trace Events 10 | . . . . 1 . . 1 1 . 2 . 2 . . 1 . . . . 2 Feedback Events 2 | . . . . . . . . . . . . 2 . . . . . . . . Corruption 2 | . . . . . . . . . . . . 2 . . . . . . . . Feedback Blocked . | . . . . . . . . . . . . . . . . . . . . . Robot Schematics Acquired . | . . . . . . . . . . . . . . . . . . . . . Robots Built 1 | . . . . . . . . . . . . . . . . . . . . 1 Authchips . | . . . . . . . . . . . . . . . . . . . . . Time 76 | . . . . . . . . . . . . . . . . . . . . 76 Total Robot Build Rating 5 | . . . . . . . . . . . . . . . . . . . . 5 Part Schematics Acquired . | . . . . . . . . . . . . . . . . . . . . . Parts Built . | . . . . . . . . . . . . . . . . . . . . . Authchips . | . . . . . . . . . . . . . . . . . . . . . Time . | . . . . . . . . . . . . . . . . . . . . . Total Part Build Rating . | . . . . . . . . . . . . . . . . . . . . . Parts Repaired . | . . . . . . . . . . . . . . . . . . . . . Time . | . . . . . . . . . . . . . . . . . . . . . Parts Recycled . | . . . . . . . . . . . . . . . . . . . . . Recycled Matter . | . . . . . . . . . . . . . . . . . . . . . Retrieved Matter . | . . . . . . . . . . . . . . . . . . . . . Retrieved Components . | . . . . . . . . . . . . . . . . . . . . . Parts Scanalyzed . | . . . . . . . . . . . . . . . . . . . . . Part Schematics Acquired . | . . . . . . . . . . . . . . . . . . . . . Parts Damaged . | . . . . . . . . . . . . . . . . . . . . . Bothacking | -11 -10 -10 -10 -9 -8 -8 -8 -8 -7 -7 -6 -6 -6 -5 -5 -4 -4 -3 -2 -1 ------------ Run | Yrd Mat Min Exi Min Mat Gar Mat Gar Fac Gar Fac Gar Fac Fac Gar Fac Gar Res Res Acc Used RIF Installer 9 | . . . . . . 2 . 2 . 1 . 1 . . 2 . 1 . . . Coupler Efficiency 1 | . . . . . . . . . . . . . . . 1 . . . . . Hotswap 1 | . . . . . . . . 1 . . . . . . . . . . . . Command Fork 1 | . . . . . . . . . . . . 1 . . . . . . . . Signal Jammer 1 | . . . . . . . . 1 . . . . . . . . . . . . Robot Detection 1 | . . . . . . . . . . 1 . . . . . . . . . . Watcher Feeds 1 | . . . . . . 1 . . . . . . . . . . . . . . Structural Interface 1 | . . . . . . . . . . . . . . . 1 . . . . . Program Shield 1 | . . . . . . . . . . . . . . . . . 1 . . . Robots Hacked 5 | . . . . . . . . . . . . . . . . . . . . 5 Non-combat 2 | . . . . . . . . . . . . . . . . . . . . 2 Combat 3 | . . . . . . . . . . . . . . . . . . . . 3 Robot Hacks Applied 6 | . . . . . . . . . . . . . . . . . . . . 6 parse_system 1 | . . . . . . . . . . . . . . . . . . . . 1 no_distress 2 | . . . . . . . . . . . . . . . . . . . . 2 find_fabricator 1 | . . . . . . . . . . . . . . . . . . . . 1 streamctrl_high 1 | . . . . . . . . . . . . . . . . . . . . 1 formatsys_high 1 | . . . . . . . . . . . . . . . . . . . . 1 Relay Couplers Released 75 | . . . . . . 12 . 31 . 18 2 8 . . . . 4 . . . Machine Destruction 75 | . . . . . . 12 . 31 . 18 2 8 . . . . 4 . . . Attached 7 | . . . . . . . . . 1 1 . 1 . . . . 4 . . . Fabnet Peak Effective % . | . . . . . . . . . . . . . . . . . . . . . Robots Rewired 10 | . . . . . . 4 . 2 . 1 . . . . 3 . . . . . Allies Hacked . | . . . . . . . . . . . . . . . . . . . . . Hacks Repelled . | . . . . . . . . . . . . . . . . . . . . . Allies | -11 -10 -10 -10 -9 -8 -8 -8 -8 -7 -7 -6 -6 -6 -5 -5 -4 -4 -3 -2 -1 -------- Run | Yrd Mat Min Exi Min Mat Gar Mat Gar Fac Gar Fac Gar Fac Fac Gar Fac Gar Res Res Acc Total Allies 20 | . . 3 . . . 4 . 2 . 1 1 1 . . 3 . 2 . . 3 Largest Group 4 | . . 3 3 3 2 4 4 3 . 1 2 1 . . 3 3 3 . . 1 Highest-Rated Group 134 | . . 40 40 40 32 134 134 101 . 31 58 51 . . 70 70 80 . . 58 Highest-Rated Ally 58 | . . 16 16 16 16 39 39 39 . 31 31 51 . . 29 29 51 . . 58 Total Orders . | . . . . . . . . . . . . . . . . . . . . . Ally Attacks 142 | . . . . 25 6 1 5 38 . 29 5 13 . . . . 17 . . 3 Total Damage 2079 | . . . . 239 63 22 74 605 . 335 105 247 . . . . 335 . . 54 Kills 21 | . . . . 4 1 1 1 6 . 2 1 3 . . . . 2 . . . Allies Corrupted 1 | . . . . . . . . . . . . . . . . . . . . 1 Allies Melted . | . . . . . . . . . . . . . . . . . . . . . Intel | -11 -10 -10 -10 -9 -8 -8 -8 -8 -7 -7 -6 -6 -6 -5 -5 -4 -4 -3 -2 -1 ------- Run | Yrd Mat Min Exi Min Mat Gar Mat Gar Fac Gar Fac Gar Fac Fac Gar Fac Gar Res Res Acc Active Infowar (turns) 3059 | . . . . . . . . . 833 182 . 1156 . . . 20 114 71 202 481 Sensors 35 | . . . . . . . . . . . . . . . . . 35 . . . IFF 1910 | . . . . . . . . . . . . 1156 . . . . . 71 202 481 Terrain 134 | . . . . . . . . . . . . . . . . 20 114 . . . Traps 1015 | . . . . . . . . . 833 182 . . . . . . . . . . Robot Analysis Total 2 | . 1 . . . . . . . . . . . . . . . . . . 1 Derelict Logs Recovered 3 | . . 2 . 1 . . . . . . . . . . . . . . . . Drone Launches . | . . . . . . . . . . . . . . . . . . . . . Drone Recoveries . | . . . . . . . . . . . . . . . . . . . . . Exploration | -11 -10 -10 -10 -9 -8 -8 -8 -8 -7 -7 -6 -6 -6 -5 -5 -4 -4 -3 -2 -1 ------------- Run | Yrd Mat Min Exi Min Mat Gar Mat Gar Fac Gar Fac Gar Fac Fac Gar Fac Gar Res Res Acc Turns Passed 15573 | 85 591 843 270 83 306 1152 183 1851 844 2654 526 2229 57 838 1485 49 218 296 202 811 Spaces Moved 10015 | 48 403 542 227 68 130 583 106 1181 487 1358 280 1134 35 479 831 31 258 367 305 1162 Core 484 | 1 . . . . . . . . . . . 18 . . . . 107 50 . 308 Treads 2315 | 42 54 . . . 1 . 5 . . 140 . 577 35 479 831 31 45 75 . . Legs 76 | . . . . . . . . . . 76 . . . . . . . . . . Wheels 5183 | 5 349 542 227 68 129 583 101 1181 487 1142 280 62 . . . . . . 27 . Hover 679 | . . . . . . . . . . . . 477 . . . . . 81 . 121 Flight 1278 | . . . . . . . . . . . . . . . . . 106 161 278 733 Fastest Speed 35 | 50 100 115 115 115 115 115 115 110 110 110 145 56 151 151 151 151 39 40 40 35 Average Speed 120 | 151 130 115 115 115 117 115 122 115 127 141 151 161 151 151 153 151 65 76 63 59 Slowest Speed 1600 | 160 240 115 115 115 240 115 320 145 165 260 160 1600 151 153 155 151 151 145 90 165 Overloaded Moves 191 | . . . . . . . . . . . . . . . . . . . . 191 Propulsion Burnouts . | . . . . . . . . . . . . . . . . . . . . . Robots Hopped 19 | . . . . . . . . . . . . . . . . . 6 . 1 12 Potential Cave-ins . | . . . . . . . . . . . . . . . . . . . . . Cave-ins Triggered . | . . . . . . . . . . . . . . . . . . . . . Exploration Rate (%) 41 | 3 64 99 61 17 17 62 13 93 16 97 6 95 1 11 99 2 51 11 11 34 Regions Visited 20 Branch Regions 3 Pre-discovered Areas 1 | . . 1 . . . . . . . . . . . . . . . . . . Known Exits Taken 7 | . 1 . . . 1 . 1 . 1 . 1 . . 1 . 1 . . . . Unknown Exits Taken 7 | 1 . 1 1 1 . . . . . . . . 1 . . . . 1 1 . Scrap Searched 3 | . . 3 . . . . . . . . . . . . . . . . . . Spaces Dug 49 | . . . . . . 12 . 6 . 30 1 . . . . . . . . . Terrain Destroyed 531 | . . . . . 28 29 . 182 69 120 8 82 . 12 1 . . . . . Melee 48 | . . . . . . 12 . 6 . 30 . . . . . . . . . . Projectile 103 | . . . . . . . . 6 26 21 8 29 . 12 1 . . . . . AOE 380 | . . . . . 28 17 . 170 43 69 . 53 . . . . . . . . Terrain Rammed . | . . . . . . . . . . . . . . . . . . . . . Walls Destroyed . | . . . . . . . . . . . . . . . . . . . . . Machines Disabled . | . . . . . . . . . . . . . . . . . . . . . Actions | -11 -10 -10 -10 -9 -8 -8 -8 -8 -7 -7 -6 -6 -6 -5 -5 -4 -4 -3 -2 -1 --------- Run | Yrd Mat Min Exi Min Mat Gar Mat Gar Fac Gar Fac Gar Fac Fac Gar Fac Gar Res Res Acc Total 12415 | 57 445 717 237 72 274 913 144 1438 612 1872 339 1376 38 561 1030 32 296 380 310 1272 Wait 1166 | . 5 140 2 2 124 163 1 28 46 294 32 48 . 53 142 . 9 . . 77 Move 9966 | 47 402 541 226 67 130 582 106 1180 487 1357 280 1133 34 479 830 31 246 366 302 1140 Hop 16 | . . . . . . . . . . . . . . . . . 5 . 1 10 Pick Up 82 | 4 13 5 1 1 4 5 4 8 10 9 1 11 1 . 3 . . . 1 1 Fast Attach 113 | 6 2 . . . 2 2 9 9 9 11 1 19 . 8 10 1 2 7 4 11 Attach 58 | . . 1 1 2 2 2 . 12 2 7 1 13 1 2 2 . 8 1 . 1 Detach 20 | . . . 1 . . . . 4 . 2 . 7 . . 2 . 2 2 . . Swap 76 | . 3 2 2 . 3 17 6 17 3 14 2 1 . . 1 . 4 1 . . Drop 128 | . 6 3 4 . 2 8 10 10 10 21 2 9 1 7 9 . 14 3 2 7 Fire 429 | . 14 16 . . 7 40 8 103 42 79 18 83 1 12 3 . 3 . . . Melee 128 | . . 9 . . . 39 . 17 3 46 2 . . . 4 . 1 . . 7 Ram 5 | . . . . . . . . . . . . . . . . . 2 . . 3 Kick . | . . . . . . . . . . . . . . . . . . . . . Crush . | . . . . . . . . . . . . . . . . . . . . . Escape Stasis 158 | . . . . . . 24 . 40 . 27 . 52 . . . . . . . 15 Rewire 70 | . . . . . . 31 . 10 . 5 . . . . 24 . . . . . Trap . | . . . . . . . . . . . . . . . . . . . . . Miscellaneous . | . . . . . . . . . . . . . . . . . . . . . Route ------- -11/Scrapyard -10/Materials (discovered 4 exits: [*Mat x2] / *Min x2) -10/Mines (discovered 4 exits: [*Mat x2] / *Exi / [*Sub]) -10/Exiles -9/Mines -8/Materials -8/Garrison (discovered 3 exits: *Mat x3) -8/Materials -8/Garrison (discovered 3 exits: *Fac x3) -7/Factory -7/Garrison (discovered 3 exits: *Fac x3) -6/Factory (discovered 2 exits: *Fac / Gar) -6/Garrison (discovered 3 exits: [*Fac x3]) -6/Factory -5/Factory (discovered 3 exits: Upp x2 / Gar) -5/Garrison (discovered 3 exits: *Fac x3) -4/Factory -4/Garrison -3/Research -2/Research (discovered 3 exits: *Acc / Tes x2) -1/Access (discovered 1 exit: Com) History --------- Turn | Location | Event 40 | -11/Scrapyard | Discovered new exit (range 16) 86 | -11/Scrapyard | Entered Materials 145 | -10/Materials | Identified exit to Mines 154 | -10/Materials | Central database locked down 248 | -10/Materials | Discovered new exit (range 10) 300 | -10/Materials | Build established: Mutant 331 | -10/Materials | Discovered new exit (range 16) 677 | -10/Materials | Entered Mines 740 | -10/Mines | Excavation squad dispatched 740 | -10/Mines | A large section of the Mines collapsed 979 | -10/Mines | Discovered new exit (range 14) 1031 | -10/Mines | Discovered new exit (range 9) 1056 | -10/Mines | Learned location of Zion (-7) 1075 | -10/Mines | Joined a pair of Derelicts in attacking an 0b10 outpost 1319 | -10/Mines | Received a Rocket Launcher from a helpful Derelict 1382 | -10/Mines | Discovered new exit (range 6) 1428 | -10/Mines | Assisted by bots powering up and referring to "LRC-V3" 1508 | -10/Mines | Deemed a non-threat by the Exiles lab entrance 1509 | -10/Mines | Discovered new exit (range 5) 1520 | -10/Mines | Entered Exiles 1520 | -10/Exiles | Accompanied by 3 allies 1551 | -10/Exiles | Met 8R-AWN 1572 | -10/Exiles | Met EX-HEX 1609 | -10/Exiles | Met EX-BIN 1625 | -10/Exiles | Aligned with FarCom system 1626 | -10/Exiles | Given EX-Vault access code 1656 | -10/Exiles | Opened EX-Vault 1671 | -10/Exiles | Found AWS/Autocannon 1694 | -10/Exiles | Warned to stay clear of 0b10 Research branches 1708 | -10/Exiles | Exiles lab attacked by MAIN.C 1772 | -10/Exiles | Discovered new exit (range 14) 1790 | -10/Exiles | Left Exiles lab with AWS/Autocannon 1790 | -10/Exiles | Entered Mines 1790 | -9/Mines | Accompanied by 3 allies 1839 | -9/Mines | Discovered new exit (range 7) 1873 | -9/Mines | Entered Materials 1873 | -8/Materials | Accompanied by 2 allies 1873 | -8/Materials | Evolved 4 slots: Propulsion x2, Utility x1, Weapon x1 2179 | -8/Materials | Identified exit to Garrison 2179 | -8/Materials | Entered Garrison 2360 | -8/Garrison | Triggered checkpoint 2385 | -8/Garrison | Discovered new exit (range 51) 2385 | -8/Garrison | Discovered new exit (range 43) 2385 | -8/Garrison | Discovered new exit (range 55) 2487 | -8/Garrison | Triggered checkpoint 2544 | -8/Garrison | Destroyed 7 combat bots 2626 | -8/Garrison | Garrison Relay disabled 2644 | -8/Garrison | Installed Relay Interface Framework 2751 | -8/Garrison | Triggered checkpoint 2790 | -8/Garrison | Garrison Relay disabled 2829 | -8/Garrison | Garrison Relay disabled 2879 | -8/Garrison | Triggered checkpoint 3079 | -8/Garrison | Triggered checkpoint 3179 | -8/Garrison | Expanded RIF knowledge: Watcher Feeds 3331 | -8/Garrison | Entered Materials 3331 | -8/Materials | Accompanied by 4 allies 3514 | -8/Materials | Identified exit to Garrison 3514 | -8/Materials | Entered Garrison 3514 | -8/Garrison | Accompanied by 3 allies 3590 | -8/Garrison | Triggered checkpoint 3639 | -8/Garrison | Garrison Relay disabled 3897 | -8/Garrison | Phase Generator disabled 3918 | -8/Garrison | Build established: Tank 4042 | -8/Garrison | Triggered checkpoint 4084 | -8/Garrison | Triggered checkpoint 4159 | -8/Garrison | Discovered new exit (range 10) 4182 | -8/Garrison | Triggered checkpoint 4220 | -8/Garrison | Garrison Relay disabled 4347 | -8/Garrison | Triggered checkpoint 4459 | -8/Garrison | P-60 Hacker assimilated allied Z5-15Y(g) 4520 | -8/Garrison | Garrison Relay disabled 4523 | -8/Garrison | Garrison Relay disabled 4525 | -8/Garrison | Garrison Relay disabled 4529 | -8/Garrison | Garrison Relay disabled 4548 | -8/Garrison | Discovered new exit (range 5) 4676 | -8/Garrison | Garrison Relay disabled 4725 | -8/Garrison | Expanded RIF knowledge: Hotswap 4844 | -8/Garrison | Core integrity fell below 50% 4887 | -8/Garrison | Lost 4 parts (2u2w) 4890 | -8/Garrison | Destroyed 8 combat bots 4985 | -8/Garrison | Discovered new exit (range 75) 4985 | -8/Garrison | Discovered new exit (range 24) 4985 | -8/Garrison | Discovered new exit (range 66) 5004 | -8/Garrison | Expanded RIF knowledge: Signal Jamming 5214 | -8/Garrison | Lost 3 parts (1p1n1w) 5365 | -8/Garrison | Entered Factory 5365 | -7/Factory | Evolved 2 slots: Utility x2 5532 | -7/Factory | Build established: Scavenger-Tank 6209 | -7/Factory | Identified exit to Garrison 6209 | -7/Factory | Entered Garrison 6312 | -7/Garrison | Garrison Relay disabled 6329 | -7/Garrison | Expanded RIF knowledge: Robot Detection 6345 | -7/Garrison | Triggered checkpoint 6527 | -7/Garrison | Build established: Scavenger-Mutant 6619 | -7/Garrison | Triggered checkpoint 6637 | -7/Garrison | Heavy support dispatched to Factory 6867 | -7/Garrison | Lost 3 parts (1p1n1w) 6945 | -7/Garrison | Heavy support dispatched to Factory 6955 | -7/Garrison | Triggered checkpoint 7067 | -7/Garrison | H-XX Assembler disabled 7145 | -7/Garrison | Garrison Relay disabled 7197 | -7/Garrison | Discovered new exit (range 10) 7488 | -7/Garrison | Discovered new exit (range 10) 7718 | -7/Garrison | Garrison Relay disabled 7841 | -7/Garrison | Triggered checkpoint 8003 | -7/Garrison | Discovered new exit (range 12) 8013 | -7/Garrison | Garrison Relay disabled 8069 | -7/Garrison | Triggered checkpoint 8105 | -7/Garrison | Garrison Relay disabled 8250 | -7/Garrison | Phase Generator disabled 8461 | -7/Garrison | Build established: Mutant 8729 | -7/Garrison | Triggered checkpoint 8863 | -7/Garrison | Entered Factory 8863 | -6/Factory | Accompanied by 1 ally 8863 | -6/Factory | Evolved 2 slots: Propulsion x1, Utility x1 9200 | -6/Factory | Discovered new exit (range 15) 9213 | -6/Factory | First assault squad dispatched 9389 | -6/Factory | Identified exit to Garrison 9389 | -6/Factory | Entered Garrison 9449 | -6/Garrison | Triggered checkpoint 9567 | -6/Garrison | Lost 5 parts (3n2u) 9568 | -6/Garrison | System corruption reached 10% 9897 | -6/Garrison | Garrison Relay disabled 10058 | -6/Garrison | Build established: Skirmisher 10200 | -6/Garrison | Spotted B-75 Beast 10238 | -6/Garrison | Destroyed B-75 Beast 10267 | -6/Garrison | Triggered checkpoint 10343 | -6/Garrison | Rescued a captive Derelict 10409 | -6/Garrison | Triggered checkpoint 10443 | -6/Garrison | Phase Generator disabled 10463 | -6/Garrison | Garrison Relay disabled 10503 | -6/Garrison | Discovered new exit (range 9) 10585 | -6/Garrison | Triggered checkpoint 10596 | -6/Garrison | Triggered checkpoint 10652 | -6/Garrison | Lost 3 parts (1n2w) 10740 | -6/Garrison | Discovered new exit (range 12) 10819 | -6/Garrison | Triggered checkpoint 10987 | -6/Garrison | Core integrity fell below 50% 11070 | -6/Garrison | Expanded RIF knowledge: Command Fork 11120 | -6/Garrison | Discovered new exit (range 10) 11296 | -6/Garrison | Build established: Mutant 11399 | -6/Garrison | Found Relay Coupler [Proto] 11402 | -6/Garrison | Found Relay Coupler [Proto] 11409 | -6/Garrison | Found Relay Coupler [Proto] 11412 | -6/Garrison | Found Relay Coupler [Proto] 11618 | -6/Garrison | Entered Factory 11632 | -6/Factory | Discovered new exit (range 9) 11675 | -6/Factory | Entered another Factory area 11675 | -5/Factory | Evolved 2 slots: Propulsion x1, Utility x1 11683 | -5/Factory | Build established: Bothacker-Tank 12231 | -5/Factory | Identified exit to Upper Caves 12513 | -5/Factory | Identified exit to Garrison 12513 | -5/Factory | Entered Garrison 12513 | -5/Garrison | Discovered recently destroyed garrison 12749 | -5/Garrison | Discovered new exit (range 15) 12808 | -5/Garrison | Expanded RIF knowledge: Structural Interface 13203 | -5/Garrison | Expanded RIF knowledge: Coupler Efficiency 13254 | -5/Garrison | Discovered new exit (range 12) 13347 | -5/Garrison | Build established: Bothacker-Mutant 13507 | -5/Garrison | Discovered new exit (range 11) 13547 | -5/Garrison | Discovered new exit (range 85) 13547 | -5/Garrison | Discovered new exit (range 58) 13547 | -5/Garrison | Discovered new exit (range 11) 13998 | -5/Garrison | Entered Factory 13998 | -4/Factory | Accompanied by 3 allies 13998 | -4/Factory | Evolved 2 slots: Utility x2 14047 | -4/Factory | Identified exit to Garrison 14047 | -4/Factory | Entered Garrison 14047 | -4/Garrison | Accompanied by 3 allies 14105 | -4/Garrison | Triggered checkpoint 14148 | -4/Garrison | Garrison Relay disabled 14149 | -4/Garrison | Lost 3 allies 14167 | -4/Garrison | Rescued a captive Derelict 14168 | -4/Garrison | Rescued a captive Derelict 14193 | -4/Garrison | Spotted B-86 Titan 14209 | -4/Garrison | Triggered checkpoint 14213 | -4/Garrison | Triggered checkpoint 14238 | -4/Garrison | Expanded RIF knowledge: Program Shield 14241 | -4/Garrison | Lost 9 parts (2p2n4u1w) 14246 | -4/Garrison | Core integrity fell below 50% 14259 | -4/Garrison | Core integrity fell below 20% 14260 | -4/Garrison | Discovered new exit (range 10) 14265 | -4/Garrison | Entered Research 14265 | -3/Research | Evolved 2 slots: Propulsion x1, Utility x1 14389 | -3/Research | Build established: Mutant 14511 | -3/Research | Discovered new exit (range 15) 14561 | -3/Research | Entered another Research area 14561 | -2/Research | Evolved 2 slots: Propulsion x1, Utility x1 14655 | -2/Research | Identified exit to Testing 14665 | -2/Research | Found Prototype Reactor 14668 | -2/Research | Discovered new exit (range 10) 14763 | -2/Research | Entered Access 14763 | -1/Access | Evolved 2 slots: Power x1, Utility x1 14892 | -1/Access | Fabricated A-15 Conveyor (x1) 14943 | -1/Access | Build established: Scout 15242 | -1/Access | Identified Zero-point Reactor 15429 | -1/Access | Identified exit to Command 15501 | -1/Access | System corruption reached 10% 15522 | -1/Access | Lost 4 parts (3n1u) 15552 | -1/Access | Core integrity fell below 50% 15569 | -1/Access | Core integrity fell below 20% 15574 | -1/Access | Destroyed by C-57 Dissector with Dual-blade Saw Last Messages --------------- 15562_ System corrupted: IFF burst signal emitted. 15563_ Penetrated by Slug. 15563_ Hacking Suite destroyed. 15564_ P-80 Master resets P-80 Master, system corruption cleaned. 15564_ Penetrated by Slug. 15564_ P-80 Master resets P-80 Master, system corruption cleaned. 15565_ Drone sends a signal. 15565_ R-10 Processor collects Med. Matter Pod. 15566_ H-88 Terminator retrieves Drone. 15566_ Penetrated by Slug. 15566_ Adv. Targeting Computer destroyed. 15567_ Slug penetrates H-88 Terminator. 15567_ Penetrated by Slug. 15567_ U-05 Engineer builds a Door. 15568_ Relay Coupler [Grunt] severed. 15569_ Penetrated by Slug. [Achievement: 30k Club] Map ----- +----------------------------------------------------+ | ???????????? T #????????? | | ???????????? #????????? | | ???????????????????###### ####### #????????? | | ????????????????????????# #??######+#######????? | | ????????????????????????# #??# #????? | | ????????????????????????# #??# #????? | | ????????????????????????# #??# #????? | | ????????????????????????# #??# #????? | | ????????????????????????# #??# "" #????? | | ????????????????????????# #??# "" #????? | | ????????????????????????# #??# """" #????? | | ????????????????????????# %#??# """""" #????? | | ????????????????????????# =#??# "" #????? | | ????????????????????????# #??# "" #????? | | ????????????????????????# #??# #????? | | ??????????????????????### #### ? #????? | | ??????????????????????# ################## | | ??????????????????????# | | ?????? ???????????# % | | ?????# #??????????# " c | | ?????# #??????????# | | ?????# #??????????# c | | ?????# #??????????# c #####h #########??? | | ?????# #?????????#####+#####??#h #??????????? | | ?????# #?????????# c #??# p #??????????? | | ?????# #?????????# @ #??#hp + ???????? | | ?????# #?????????# #??# # ???? | | ?????# #?????????# [ #??# p#? """ #?? | | ?????# #?????????# #??# #?? Y" ?#?? | | ?????# #?????????# !!! #??# #????"" ???? | | ?????# +?????????# !!! #??# #????? ???? | | ?????# #?????????# !!! #??# #?????? ??? | | ###### #?????????#####/#####??# #??????????? | | h#?????????????#g#??????# ############ | | ##########????# #??????# | | ######+######## Y #######+#### | | h # #w #????? ??? | | # g g g # #????? ??? | | # # #???? ?? | | /g #p #???? ?? | | ##########+#### # # *#???# ? | | ????????? ??# # # #???# ? | | ????????? ??# ############### ###?######## | | ???????? ?# ############# #????????? | | ???????? ?# #????????? | | ???????! # #????????? | | ???????! # #????????? | | ?????? = # #????????? | | ?????? ! # #????????? | | ?????# #####+############# #????????? | +----------------------------------------------------+ Best States ------------- Heat Dissipation 64 Energy Generation 25 Energy Capacity 340 Matter Stores 357 Matter Capacity 500 Sight Range 16 Robot Scan Range 15 Terrain Scan Range 24 Terrain Scan Density 10 Power Amplification 30 Armor Coverage 450 Propulsion Shielding 66 Evasion (%) 63 Targeting Accuracy 16 Target Analysis 6 Core Analysis 6 Recoil Reduction 6 Offensive Hacking 10 Relay Coupler Types 2 Relay Coupler Value 63 Item Schematics ----------------- None Robot Schematics ------------------ None Fabricated ------------ A-15 Conveyor | x1 | -1/Access | Preloaded Repaired ---------- Nothing Alien Tech Used ----------------- None Achievements -------------- 30k Club No Signal Challenges ------------ None Game ------ Seed TransportTitaniumDrive Manual? 0 Play Time 02:08:09 Cumulative 107.8 hours Start 2025.08.08 @ 15:06:14 End 2025.08.08 @ 17:13:44 Sessions 1 Manual Loads 0 Difficulty Rogue Special Mode None Game No. 133 Rogue 133 Adventurer 0 Explorer 0 Win Type - Total 0 Types 0/0/0/0/0/0/0/0/0/0 Lore% 63 Gallery% 48 Achievement% 45 Wizard Run 0 Options --------- Layout 1 ASCII 0 Keyboard 0 Movement Arrows Keybinds 0 Fullscreen 1 Font 24/Smallcaps Map View 50x35 Zoom Use 0% Tactical HUD 1 Map Filters NONE Filters NONE Steam 1 RUN: 6bdfe71f-c247-43b8-93bd-1d03f3b74f44